fUSD/lending_fUSD_20251231
["ID","MTS","AMOUNT","RATE_DAILY","PERIOD"]
[400151233,1767157341347,500.0,0.00014933,2]
[400151234,1767157341784,151.0,0.00014933,2]
[400151235,1767157341937,344.78851565,0.00014933,2]
[400151236,1767157342394,151.0,0.00014933,2]
[400151237,1767157342989,151.0,0.00014933,2]
[400151238,1767157343610,151.0,0.00014933,2]
[400151239,1767157347725,500.0,0.00014933,2]
[400151240,1767157350617,500.0,0.00014941,2]
[400151241,1767157350699,500.0,0.00014941,2]
[400151242,1767157350934,516.40866578,0.00014941,2]
[400151243,1767157359472,54275.4019332,0.0001494,2]
[400151254,1767157819475,-152.89239235,0.00013699,2]
[400151255,1767157822560,-177.0797907,0.00013699,2]
[400151256,1767157825683,-166.66,0.00013699,2]
[400151259,1767157831253,-117.42781695,0.00013699,2]
[400151260,1767157831264,-1200.0,0.00014763,2]
[400151261,1767157831273,-51.35861176,0.00014763,2]
[400151262,1767157831310,-248.64138824,0.00014763,2]
[400151263,1767157831319,-300.0,0.00014763,2]
[400151264,1767157831329,-300.0,0.00014763,2]
[400151265,1767157831339,-1676.32993688,0.00014764,2]
[400151266,1767157831352,-341.70729925,0.00014764,2]
[400151267,1767157831362,-177.47226613,0.00014764,2]
[400151268,1767157831371,-3604.59574534,0.00014764,2]
[400151269,1767157831383,-835.8024109,0.00014764,2]
[400151270,1767157831396,-874.0,0.00014764,2]
[400151271,1767157831408,-3773.8207,0.00014764,2]
[400151272,1767157831422,-645.65123717,0.00014764,2]
[400151273,1767157831432,-272.0,0.00014764,2]
[400151274,1767157831441,-353.3089781,0.00014764,2]
[400151275,1767157831451,-250.0,0.00014801,2]
[400151276,1767157831461,-1200.0,0.00014839,2]
[400151277,1767157831471,-150.0,0.00014841,2]
[400151278,1767157831481,-168.99959387,0.00014841,2]
[400151279,1767157831490,-500.0,0.00014841,2]
[400151280,1767157831500,-210.15565826,0.00014841,2]
[400151281,1767157831510,-500.0,0.00014841,2]
[400151282,1767157831520,-500.0,0.00014841,2]
[400151283,1767157831530,-150.2593479,0.00014841,2]
[400151284,1767157831542,-261.12030574,0.00014841,2]
[400151285,1767157831552,-156.81996151,0.00014841,2]
[400151286,1767157831562,-3446.526,0.00014842,2]
[400151287,1767157831571,-5385.10503138,0.00014842,2]
[400151288,1767157831583,-1140.61393534,0.00014842,2]
[400151289,1767157831595,-745.6569597,0.00014842,2]
[400151290,1767157837291,-253.4450449,0.00014842,2]
[400151291,1767157837348,-2098.05323482,0.00014842,2]
[400151292,1767157837360,-34357.4999975,0.00014842,2]
[400151293,1767157837372,-635.43710392,0.00014842,2]
[400151294,1767157837383,-895.5214939,0.00014842,2]
[400151295,1767157837402,-6478.71014821,0.00014842,2]
[400151296,1767157837413,-1260.78888652,0.00014842,2]
[400151297,1767157837456,-1976.21668405,0.00014842,2]
[400151492,1767157839433,-944772.95147976,0.00014842,2]
[400151494,1767157839443,-176.93,0.00014864,2]
[400151496,1767157839453,-3872.15,0.00014907,2]
[400151498,1767157839463,-239.99756585,0.0001493,2]
[400151500,1767157839473,-199.4693341,0.0001494,2]
[400151502,1767157839483,-57141.7293404,0.0001494,2]
[400151504,1767157839492,-92741.5669273,0.0001494,2]
[400151506,1767157839502,-5644.537297,0.0001494,2]
[400151508,1767157839511,-1549.7005492,0.0001494,2]
[400151510,1767157839521,-500.0,0.00014941,2]
[400151512,1767157839531,-500.0,0.00014941,2]
[400151514,1767157839540,-524.42801604,0.00014941,2]
[400151516,1767157839550,-393.79395609,0.00014941,2]
[400151518,1767157839560,-500.0,0.00014941,2]
[400151520,1767157839569,-500.0,0.00014941,2]
[400151522,1767157839579,-507.72040443,0.00014941,2]
[400151524,1767157839589,-500.0,0.00014941,2]
[400151526,1767157839599,-500.0,0.00014941,2]
[400151528,1767157839609,-500.0,0.00014941,2]
[400151530,1767157839618,-500.0,0.00014941,2]
[400151532,1767157839628,-500.0,0.00014941,2]
[400151535,1767157839639,-500.0,0.00014941,2]
[400151537,1767157839650,-510.40919778,0.00014941,2]
[400151539,1767157839660,-548.28275774,0.00014941,2]
[400151541,1767157839670,-500.0,0.00014941,2]
[400151543,1767157839679,-500.0,0.00014941,2]
[400151545,1767157839689,-507.20388278,0.00014941,2]
[400151547,1767157839699,-2018.03723607,0.00015001,2]
[400151549,1767157839708,-9733.87009337,0.00015001,2]
[400151551,1767157839717,-500.0,0.00015001,2]
[400151553,1767157839726,-1000.0,0.00015042,2]
[400151555,1767157839736,-200.0,0.00015045,2]
[400151557,1767157839746,-1000.0,0.00015102,2]
[400151559,1767157839756,-7028.04,0.00015102,2]
[400151561,1767157839766,-353.30897806,0.0001512,2]
[400151563,1767157839775,-250.87276747,0.00015141,2]
[400151565,1767157839784,-151.0,0.0001515,2]
[400151567,1767157839795,-151.0,0.0001515,2]
[400151569,1767157839805,-200.0,0.0001515,2]
[400151571,1767157839814,-151.0,0.0001515,2]
[400151573,1767157839824,-200.0,0.0001515,2]
[400151575,1767157839834,-200.0,0.0001515,2]
[400151577,1767157839844,-151.0,0.0001515,2]
[400151579,1767157839855,-151.0,0.0001515,2]
[400151581,1767157839865,-151.0,0.0001515,2]
[400151583,1767157839874,-151.0,0.0001515,2]
[400151585,1767157839884,-151.0,0.0001515,2]
[400151587,1767157839894,-151.0,0.0001515,2]
[400151589,1767157839904,-500.0,0.0001515,2]
[400151591,1767157839914,-151.0,0.0001515,2]
[400151592,1767157839924,-1226.79,0.00015197,2]
[400151593,1767157839933,-2018.03723607,0.00015239,2]
[400151594,1767157839942,-9733.87009337,0.00015239,2]
[400151595,1767157839952,-150.0,0.00015241,2]
[400151596,1767157839962,-152.10127393,0.00015288,2]
[400151597,1767157839972,-299.99,0.0001531,2]
[400151598,1767157839981,-9999.99,0.0001531,2]
[400151599,1767157839991,-9999.99,0.0001531,2]
[400151600,1767157840000,-2054.59,0.0001531,2]
[400151601,1767157840009,-347.28,0.0001531,2]
[400151602,1767157840018,-334.98,0.0001531,2]
[400151603,1767157840028,-150.99,0.0001531,2]
[400151604,1767157840038,-11651.15,0.0001531,2]
[400151605,1767157840047,-150.99,0.0001531,2]
[400151606,1767157840056,-999.99,0.0001531,2]
[400151607,1767157840065,-7352.97,0.0001531,2]
[400151609,1767157840074,-1600.0,0.00015317,2]
[400151610,1767157840084,-2018.03723607,0.00015476,2]
[400151612,1767157840095,-9733.87009337,0.00015476,2]
[400151613,1767157840104,-353.30897806,0.00015476,2]
[400151614,1767157840113,-5940.89945759,0.0001548,2]
[400151615,1767157840123,-200.0,0.00015537,2]
[400151616,1767157840132,-500.0,0.0001556,2]
[400151617,1767157840144,-159.87,0.00015577,2]
[400151618,1767157840154,-151.0,0.00015671,2]
[400151619,1767157840164,-200.0,0.00015698,2]
[400151620,1767157840174,-200.0,0.00015698,2]
[400151621,1767157840186,-500.0,0.00015698,2]
[400151622,1767157840196,-2018.03723607,0.00015713,2]
[400151623,1767157840206,-9733.87009337,0.00015713,2]
[400151625,1767157840218,-620.0,0.00015751,2]
[400151627,1767157840231,-322.6107,0.00015751,2]
[400151629,1767157840242,-574.12855637,0.00015751,2]
[400151631,1767157840251,-166.19240121,0.00015751,2]
[400151632,1767157840261,-578.20924308,0.00015751,2]
[400151634,1767157840271,-200.0,0.00015751,2]
[400151636,1767157840280,-207.4,0.00015751,2]
[400151638,1767157840290,-215.0738,0.00015751,2]
[400151640,1767157840299,-318.48492014,0.00015751,2]
[400151642,1767157840309,-177.47226611,0.00015819,2]
[400151644,1767157840318,-353.30897806,0.00015832,2]
[400151647,1767157840328,-2018.03723607,0.00015951,2]
[400151648,1767157840338,-9733.87009337,0.00015951,2]
[400151651,1767157840347,-255.0,0.00015969,2]
[400151652,1767157840356,-161.54747738,0.00016137,2]
[400151655,1767157840367,-420.0,0.00016161,2]
[400151657,1767157840376,-420.0,0.00016161,2]
[400151659,1767157840386,-2018.03723607,0.00016188,2]
[400151661,1767157840396,-9733.87009337,0.00016188,2]
[400151663,1767157840405,-353.30897806,0.00016188,2]
[400151665,1767157840415,-161.54747738,0.00016219,2]
[400151667,1767157840424,-1680.0,0.00016239,2]
[400151669,1767157840434,-300.0,0.00016239,2]
[400151671,1767157840443,-250.0,0.0001624,2]
[400151673,1767157840452,-209.79565793,0.0001624,2]
[400151675,1767157840462,-195.0,0.0001624,2]
[400151677,1767157840471,-250.0,0.0001624,2]
[400151679,1767157840480,-1565.0,0.00016243,2]
[400151681,1767157840490,-200.0,0.00016246,2]
[400151683,1767157840499,-200.0,0.00016246,2]
[400151685,1767157840509,-500.0,0.00016246,2]
[400151687,1767157840519,-1206.77387424,0.0001627,2]
[400151689,1767157840528,-595.37131296,0.00016299,2]
[400151691,1767157840537,-161.54747738,0.00016301,2]
[400151693,1767157840547,-161.54747738,0.00016356,2]
[400151695,1767157840556,-2018.03723607,0.00016425,2]
[400151697,1767157840565,-9733.87009337,0.00016425,2]
[400151699,1767157840574,-500.0,0.00016438,2]
[400151701,1767157840584,-500.0,0.00016438,2]
[400151703,1767157840593,-500.0,0.00016438,2]
[400151705,1767157840602,-500.0,0.00016438,2]
[400151707,1767157840611,-500.0,0.00016438,2]
[400151709,1767157840621,-500.0,0.00016438,2]
[400151711,1767157840630,-500.0,0.00016438,2]
[400151713,1767157840640,-500.0,0.00016438,2]
[400151715,1767157840649,-576.07998416,0.00016438,2]
[400151717,1767157840658,-500.0,0.00016438,2]
[400151719,1767157840668,-500.0,0.00016438,2]
[400151721,1767157840678,-161.54747738,0.00016438,2]
[400151723,1767157840688,-809.5839778,0.00016438,2]
[400151725,1767157840697,-1000.0,0.0001647,2]
[400151727,1767157840707,-329.1245,0.00016494,2]
[400151729,1767157840717,-161.54747738,0.00016521,2]
[400151731,1767157840726,-1000.0,0.0001657,2]
[400151733,1767157840736,-161.54747738,0.00016575,2]
[400151735,1767157840745,-2804.467364,0.000166,2]
[400151737,1767157840755,-1000.0,0.000166,2]
[400151740,1767157840765,-161.54747738,0.00016658,2]
[400151742,1767157840775,-442.89086998,0.0001666,2]
[400151744,1767157840785,-2018.03723607,0.00016663,2]
[400151746,1767157840795,-9733.87009337,0.00016663,2]
[400151748,1767157840804,-516.66830415,0.00016681,2]
[400151750,1767157840814,-500.0,0.00016699,2]
[400151752,1767157840823,-1266.0,0.00016699,2]
[400151754,1767157840832,-500.0,0.00016699,2]
[400151756,1767157840842,-150.0,0.00016699,2]
[400151758,1767157840851,-153.31723136,0.00016699,2]
[400151760,1767157840861,-150.0,0.00016699,2]
[400151762,1767157840870,-500.0,0.00016699,2]
[400151764,1767157840879,-152.39911517,0.00016699,2]
[400151766,1767157840888,-500.0,0.00016699,2]
[400151768,1767157840899,-500.0,0.00016699,2]
[400151770,1767157840908,-150.0,0.00016699,2]
[400151772,1767157840917,-150.0,0.00016699,2]
[400151774,1767157840927,-500.0,0.00016699,2]
[400151776,1767157840937,-190.71452459,0.00016699,2]
[400151778,1767157840946,-500.0,0.00016699,2]
[400151780,1767157840956,-150.0,0.00016699,2]
[400151782,1767157840965,-150.0,0.00016699,2]
[400151784,1767157840975,-500.0,0.00016699,2]
[400151786,1767157840985,-150.0,0.00016699,2]
[400151788,1767157840995,-500.0,0.00016699,2]
[400151791,1767157841004,-150.0,0.00016699,2]
[400151792,1767157841013,-500.0,0.00016699,2]
[400151795,1767157841023,-150.0,0.00016699,2]
[400151797,1767157841033,-500.0,0.00016699,2]
[400151799,1767157841042,-150.0,0.00016699,2]
[400151800,1767157841051,-150.0,0.00016699,2]
[400151802,1767157841061,-500.0,0.00016699,2]
[400151805,1767157841070,-211.80783292,0.00016699,2]
[400151806,1767157841079,-150.0,0.00016699,2]
[400151808,1767157841088,-152.35696755,0.00016699,2]
[400151810,1767157841098,-150.0,0.00016699,2]
[400151812,1767157841107,-159.50909727,0.00016699,2]
[400151814,1767157841117,-150.0,0.00016699,2]
[400151816,1767157841126,-150.0,0.00016699,2]
[400151818,1767157841135,-150.0,0.00016699,2]
[400151820,1767157841148,-500.0,0.00016699,2]
[400151822,1767157841157,-500.0,0.00016699,2]
[400151824,1767157841168,-201.83477895,0.00016699,2]
[400151827,1767157841179,-161.54747738,0.00016712,2]
[400151829,1767157841188,-684.58,0.00016726,2]
[400151831,1767157841197,-551.50091836,0.00016754,2]
[400151833,1767157841206,-1266.0,0.00016754,2]
[400151835,1767157841216,-500.0,0.00016754,2]
[400151837,1767157841225,-150.0,0.00016754,2]
[400151839,1767157841234,-150.0,0.00016754,2]
[400151841,1767157841244,-500.0,0.00016754,2]
[400151843,1767157841253,-500.0,0.00016754,2]
[400151845,1767157841263,-501.6198566,0.00016754,2]
[400151847,1767157841272,-150.0,0.00016754,2]
[400151849,1767157841281,-150.0,0.00016754,2]
[400151851,1767157841291,-500.0,0.00016754,2]
[400151853,1767157841301,-500.0,0.00016754,2]
[400151855,1767157841310,-150.0,0.00016754,2]
[400151857,1767157841320,-150.0,0.00016754,2]
[400151859,1767157841330,-500.0,0.00016754,2]
[400151861,1767157841339,-500.0,0.00016754,2]
[400151863,1767157841348,-150.0,0.00016754,2]
[400151865,1767157841358,-500.0,0.00016754,2]
[400151867,1767157841368,-500.0,0.00016754,2]
[400151869,1767157841378,-150.0,0.00016754,2]
[400151872,1767157841388,-150.0,0.00016754,2]
[400151874,1767157841397,-500.0,0.00016754,2]
[400151876,1767157841406,-215.81188498,0.00016754,2]
[400151878,1767157841416,-150.0,0.00016754,2]
[400151880,1767157841426,-150.0,0.00016754,2]
[400151882,1767157841436,-150.0,0.00016754,2]
[400151884,1767157841445,-153.25863635,0.00016754,2]
[400151886,1767157841454,-500.0,0.00016754,2]
[400151888,1767157841464,-500.0,0.00016754,2]
[400151890,1767157841473,-200.0,0.00016794,2]
[400151892,1767157841483,-200.0,0.00016794,2]
[400151894,1767157841493,-500.0,0.00016794,2]
[400151896,1767157841503,-161.54747738,0.00016795,2]
[400151898,1767157841512,-1616.0,0.00016797,2]
[400151900,1767157841522,-1266.0,0.00016809,2]
[400151902,1767157841531,-500.0,0.00016809,2]
[400151904,1767157841541,-150.0,0.00016809,2]
[400151906,1767157841550,-150.0,0.00016809,2]
[400151908,1767157841560,-224.74314597,0.00016809,2]
[400151910,1767157841570,-500.0,0.00016809,2]
[400151913,1767157841580,-150.0,0.00016809,2]
[400151914,1767157841589,-174.62778945,0.00016809,2]
[400151917,1767157841599,-381.87159775,0.00016809,2]
[400151919,1767157841609,-500.0,0.00016809,2]
[400151921,1767157841619,-150.0,0.00016809,2]
[400151942,1767157841810,-284.79884593,0.00016809,2]
[400151945,1767157841827,-390.60836793,0.00016809,2]
[400151947,1767157841838,-500.0,0.00016809,2]
[400151949,1767157841847,-150.0,0.00016809,2]
[400151951,1767157841857,-500.0,0.00016809,2]
[400151953,1767157841866,-230.97936029,0.00016809,2]
[400151955,1767157841876,-158.43030322,0.00016809,2]
[400151957,1767157841886,-150.0,0.00016809,2]
[400151959,1767157841896,-500.0,0.00016809,2]
[400151961,1767157841906,-150.0,0.00016809,2]
[400151963,1767157841915,-208.29820505,0.00016809,2]
[400151965,1767157841925,-236.27782193,0.00016809,2]
[400151967,1767157841935,-396.86391683,0.00016809,2]
[400151969,1767157841944,-420.54580625,0.00016809,2]
[400151971,1767157841954,-617.40005154,0.00016847,2]
[400151973,1767157841963,-1266.0,0.00016863,2]
[400151975,1767157841972,-500.0,0.00016863,2]
[400151977,1767157841982,-150.0,0.00016863,2]
[400151979,1767157841992,-157.98812161,0.00016863,2]
[400151981,1767157842001,-500.0,0.00016863,2]
[400151983,1767157842010,-170.98501641,0.00016863,2]
[400151986,1767157842020,-388.95025734,0.00016863,2]
[400151987,1767157842029,-193.91387241,0.00016863,2]
[400151990,1767157842039,-500.0,0.00016863,2]
[400151991,1767157842048,-150.0,0.00016863,2]
[400151993,1767157842057,-500.0,0.00016863,2]
[400151996,1767157842067,-394.80349152,0.00016863,2]
[400151997,1767157842076,-283.04480305,0.00016863,2]
[400152000,1767157842085,-150.0,0.00016863,2]
[400152002,1767157842095,-177.47226611,0.00016873,2]
[400152004,1767157842105,-161.54747738,0.00016877,2]
[400152006,1767157842114,-178.56781622,0.00016899,2]
[400152008,1767157842124,-593.42597815,0.000169,2]
[400152010,1767157842133,-2039.8504,0.000169,2]
[400152012,1767157842144,-160.00413713,0.000169,2]
[400152014,1767157842154,-2018.03723607,0.000169,2]
[400152016,1767157842163,-652.6666978,0.000169,2]
[400152018,1767157842173,-9733.87009337,0.000169,2]
[400152020,1767157842183,-3831.23294994,0.000169,2]
[400152022,1767157842192,-500.0,0.000169,2]
[400152024,1767157842202,-500.0,0.000169,2]
[400152026,1767157842211,-500.0,0.000169,2]
[400152029,1767157842222,-500.0,0.000169,2]
[400152032,1767157842231,-500.0,0.000169,2]
[400152035,1767157842240,-500.0,0.000169,2]
[400152038,1767157842250,-500.0,0.000169,2]
[400152040,1767157842259,-500.0,0.000169,2]
[400152042,1767157842268,-500.0,0.000169,2]
[400152044,1767157842277,-500.0,0.000169,2]
[400152046,1767157842287,-500.0,0.000169,2]
[400152048,1767157842296,-251.40035828,0.000169,2]
[400152050,1767157842306,-1266.0,0.00016918,2]
[400152052,1767157842315,-500.0,0.00016918,2]
[400152054,1767157842324,-150.0,0.00016918,2]
[400152056,1767157842333,-500.0,0.00016918,2]
[400152058,1767157842342,-500.0,0.00016918,2]
[400152060,1767157842351,-214.48049715,0.00016918,2]
[400152062,1767157842360,-500.0,0.00016918,2]
[400152064,1767157842369,-162.58720316,0.00016918,2]
[400152066,1767157842379,-1000.0,0.0001697,2]
[400152068,1767157842388,-500.0,0.0001697,2]
[400152070,1767157842399,-500.0,0.0001697,2]
[400152072,1767157842408,-1000.0,0.0001697,2]
[400152074,1767157842417,-706.99668348,0.0001697,2]
[400152076,1767157842427,-1000.0,0.0001697,2]
[400152079,1767157842436,-1000.0,0.0001697,2]
[400152080,1767157842445,-500.0,0.0001697,2]
[400152083,1767157842455,-642.21094368,0.00016973,2]
[400152085,1767157842470,-623.78905632,0.00016973,2]
[400152087,1767157842479,-500.0,0.00016973,2]
[400152089,1767157842488,-172.11214993,0.00016973,2]
[400152091,1767157842497,-180.42590354,0.00016973,2]
[400152093,1767157842506,-500.0,0.00016973,2]
[400152095,1767157842515,-500.0,0.00016973,2]
[400152097,1767157842525,-384.06441548,0.00016973,2]
[400152099,1767157842534,-150.0,0.00016973,2]
[400152101,1767157842544,-150.0,0.00016973,2]
[400152103,1767157842554,-6103.07142799,0.00016986,2]
[400152122,1767157842720,-8975.40587101,0.00016986,2]
[400152124,1767157842731,-8763.45477203,0.00016986,2]
[400152126,1767157842742,-4087.71775331,0.00016986,2]
[400152129,1767157842757,-11785.87988392,0.00016986,2]
[400152131,1767157842768,-11892.30029174,0.00016986,2]
[400152132,1767157842778,-1000.0,0.00016989,2]
[400152133,1767157842787,-150.0,0.0001699,2]
[400152134,1767157842795,-239.99756585,0.0001699,2]
[400152135,1767157842804,-239.99756585,0.0001699,2]
[400152136,1767157842813,-358298.3475037,0.00016999,2]
[400152137,1767157842822,-467.19773594,0.00016999,2]
[400152138,1767157842831,-567.50706892,0.00016999,2]
[400152139,1767157842839,-9725.9473345,0.00016999,2]
[400152140,1767157842848,-3365.2935547,0.00016999,2]
[400152141,1767157842857,-300.0,0.00016999,2]
[400152142,1767157842866,-300.0,0.00016999,2]
[400152143,1767157842875,-300.0,0.00016999,2]
[400152144,1767157842885,-666.0,0.00016999,2]
[400152146,1767157842894,-300.0,0.00016999,2]
[400152148,1767157842903,-300.0,0.00016999,2]
[400152150,1767157842913,-300.0,0.00016999,2]
[400152151,1767157842922,-681.43055394,0.00016999,2]
[400152154,1767157842931,-4443.0,0.00017,2]
[400152156,1767157842941,-4083875.73829881,0.00017,2]
[400152258,1767157843883,-341.04,0.00014941,2]
[400152265,1767157843939,-158.96,0.00014941,2]
[400152267,1767157843949,-500.0,0.00014941,2]
[400152269,1767157843958,-158.32756811,0.00016544,2]
[400152441,1767157845590,-504.0089764,0.00014941,2]
[400152442,1767157845601,-194.98140995,0.00016544,2]
[400152443,1767157845612,-154.78,0.00016548,2]
[400152444,1767157845622,-1113.37789354,0.000169,2]
[400152445,1767157845632,-353.30897806,0.000169,2]
[400152446,1767157845644,-117.76756354,0.00017,2]
[400152447,1767157845662,-5300.13672791,0.00017,2]
[400152448,1767157845674,-1681.28327184,0.00017,2]
[400152449,1767157845686,-461.74759373,0.00017,2]
[400152497,1767157846163,-386732.15043045,0.00017,2]
[400152500,1767157846175,-2983.4383552,0.00017,2]
[400152503,1767157846194,-151.0,0.00016548,2]
[400152505,1767157846204,-3578.01848402,0.00017,2]
[400152507,1767157846216,-2437.37666779,0.00017,2]
[400152509,1767157846227,-1767.395,0.00017,2]
[400152511,1767157846239,-3869.54479689,0.00017,2]
[400152514,1767157846252,-2690.16142509,0.00017,2]
[400154429,1767158434919,-170.48221519,0.00013699,2]
[400154430,1767158437374,-212.39551859,0.00013699,2]
[400154431,1767158439870,-300.86586413,0.00013699,2]
[400154441,1767158734511,-591.29135752,0.00013533,2]
[400154442,1767158737861,-246.82755494,0.00013533,2]
[400154443,1767158741184,-200.13488385,0.00013533,2]
[400154444,1767158744430,-299.3087587,0.00013533,2]
[400154445,1767158750683,-320.21220242,0.00013533,2]
[400154446,1767158752485,-194.18093319,0.00013533,2]
[400154447,1767158757181,-153.25117766,0.00013533,2]
[400154448,1767158759317,-490.30061707,0.00013533,2]
[400154450,1767158767476,-166.93819676,0.00013533,2]
[400154451,1767158773189,-174.72569709,0.00013533,2]
[400154452,1767158775156,-166.66,0.00013533,2]
[400154453,1767158777241,-199.19494015,0.00013533,2]
[400154454,1767158781976,-13.75377178,0.00013533,2]
[400154455,1767158782000,-159.31640209,0.00013699,2]
[400154456,1767158782026,-80.28139513,0.0001399,2]
[400154457,1767158784011,-325.56477699,0.0001399,2]
[400154458,1767158789446,-240.72728583,0.0001399,2]
[400154459,1767158793227,-177.5113,0.0001399,2]
[400154460,1767158798845,-256.0,0.0001399,2]
[400154461,1767158800474,-256.79390013,0.0001399,2]
[400154462,1767158805580,-164.42133943,0.0001399,2]
[400154463,1767158807398,-192.85106938,0.0001399,2]
[400154464,1767158813419,-309.00967224,0.0001399,2]
[400154465,1767158821481,-410.47692704,0.0001399,2]
[400154467,1767158825280,-526.70065048,0.0001399,2]
[400154468,1767158830481,-185.56190518,0.0001399,2]
[400154469,1767158831960,-162.74,0.0001399,2]
[400154472,1767158890875,174.97,0.000117,2]
[400154495,1767158929332,-333.82944524,0.0001392,2]
[400154496,1767158933205,-91.66292976,0.0001392,2]
[400154497,1767158933230,-68.68114105,0.0001399,2]
[400154608,1767159031800,-62.41190143,0.0001399,2]
[400154610,1767159031811,-166.66,0.00014026,2]
[400154611,1767159031821,-195.0,0.00014316,2]
[400154613,1767159031830,-166.66,0.00014322,2]
[400154614,1767159031840,-166.66,0.00014617,2]
[400154615,1767159031863,-190.21034731,0.00014632,2]
[400154616,1767159031875,-237.76940564,0.00014633,2]
[400154617,1767159031886,-300.0,0.00014641,2]
[400154618,1767159031896,-300.0,0.00014641,2]
[400154619,1767159031906,-1200.0,0.00014641,2]
[400154620,1767159031917,-150.0,0.00014641,2]
[400154621,1767159031927,-244.66948168,0.00014642,2]
[400154622,1767159031937,-4682.06667043,0.00014642,2]
[400154623,1767159032124,-2332.08059724,0.00014642,2]
[400154624,1767159032141,-497.76627144,0.00014642,2]
[400154625,1767159032154,-908.55577311,0.00014642,2]
[400154626,1767159032165,-433.60596329,0.00014642,2]
[400154627,1767159032177,-10277.55994711,0.00014642,2]
[400154628,1767159032189,-565.39403671,0.00014642,2]
[400154629,1767159037505,-180.86999406,0.00014633,2]
[400154630,1767159037515,-238.2584797,0.00014642,2]
[400154631,1767159038043,-6599.99875584,0.00014642,2]
[400154632,1767159038156,-400.0,0.00014642,2]
[400154633,1767159038212,-594.16393369,0.00014642,2]
[400154763,1767159039687,-176.21335283,0.00014633,2]
[400154764,1767159039696,-555.96999795,0.00014642,2]
[400154765,1767159039707,-495.68719811,0.00014642,2]
[400154766,1767159039717,-900.10768277,0.00014642,2]
[400154767,1767159039728,-2008.21422547,0.00014642,2]
[400154768,1767159039743,-32682.31025725,0.00014642,2]
[400154771,1767159039754,-459.875,0.00014642,2]
[400154788,1767159039909,-560.25400185,0.00014642,2]
[400154795,1767159039967,-1210.01551223,0.00014642,2]
[400154850,1767159040474,-1.7e-07,0.00014642,2]
[400154853,1767159040486,-936.43138001,0.00014642,2]
[400155096,1767159043141,-2727.89505997,0.00014642,2]
[400155098,1767159043152,-521.7277719,0.00014642,2]
[400155105,1767159043210,-535.44798845,0.00014642,2]
[400155107,1767159043221,-7883.64469327,0.00014642,2]
[400155110,1767159043232,-2170.09,0.00014642,2]
[400155188,1767159043966,-736.532783,0.00014642,2]
[400155195,1767159044030,-482.92950368,0.00014642,2]
[400155197,1767159044042,-45436.74868816,0.00014642,2]
[400155200,1767159044053,-1908.94807662,0.00014642,2]
[400155202,1767159044065,-262.23042766,0.00014642,2]
[400155355,1767159045500,-248457.21004245,0.00014642,2]
[400155358,1767159045511,-44746.7004408,0.00014642,2]
[400155360,1767159045522,-1174.3244468,0.00014642,2]
[400155365,1767159045557,-466.71435071,0.00014642,2]
[400155373,1767159045620,-1401.12127199,0.00014642,2]
[400155375,1767159045634,-619.59135763,0.00014642,2]
[400155376,1767159045648,-477.15219647,0.00014642,2]
[400155377,1767159045677,-1031.79579359,0.00014642,2]
[400156886,1767159364367,-1050.24080596,0.00014287,2]
[400156887,1767159366929,-198.6103345,0.00014287,2]
[400156888,1767159368421,-300.0,0.00014287,2]
[400156889,1767159369797,-436.78428078,0.00014287,2]
[400156890,1767159371379,-166.66,0.00014287,2]
[400156891,1767159373409,-317.05928227,0.00014287,2]
[400156892,1767159375102,-200.0,0.00014287,2]
[400156893,1767159377630,-166.66,0.00014287,2]
[400156894,1767159379256,-382.94071773,0.00014287,2]
[400156895,1767159410585,-231.29073861,0.00014287,2]